Cogmind - Beta 11.1 @@@ ROGUE MODE // 2022.05.13 @ 03:06:53 Player: Olga Result: Self-destructed Performance ------------- Evolutions (1) 500 Regions Visited (3) 600 Robots Destroyed (4) 20 Value Destroyed (40) 40 Prototype IDs (0) 0 Alien Tech Used (0) 0 Bonus (225) 225 TOTAL SCORE: 1385 Bonus ------- Pacifist 200 Follower Combat Kills 25 Cogmind --------- Core Integrity 381/400 Matter 255/300 Energy 123/125 System Corruption 0% Temperature Cool (4) Movement Flying (37) Location -9/Mines Parts ------- > --- POWER (1) -------- Light Ion Engine > --- PROPULSION (4) --- Flight Unit Flight Unit > --- UTILITY (2) ------ (None) > --- WEAPON (2) ------- Grenade Launcher > --- INVENTORY (5) ---- (None) Peak State ------------ > --- POWER ------------ Light Ion Engine > --- PROPULSION ------- Flight Unit Flight Unit > --- UTILITY ---------- (None) > --- WEAPON ----------- Grenade Launcher > --- INVENTORY -------- (None) [Rating: 4] Favorites ----------- Power Light Ion Engine Engine Light Ion Engine Propulsion Flight Unit Flight Unit Flight Unit Utility None Weapon Grenade Launcher Launcher Grenade Launcher Build | -11 -10 -9 -9 ------- Run | Scr Mat Mat Min Slots Evolved 2 | . . 2 . Power . | . . . . Propulsion 2 | . . 2 . Utility . | . . . . Weapon . | . . . . Parts Attached 4 | . . . 4 Power 1 | . . . 1 Engine 1 | . . . 1 Core . | . . . . Reactor . | . . . . Propulsion 2 | . . . 2 Treads . | . . . . Leg . | . . . . Wheel . | . . . . Hover . | . . . . Flight 2 | . . . 2 Utility . | . . . . Device . | . . . . Storage . | . . . . Processor . | . . . . Hackware . | . . . . Protection . | . . . . Artifact . | . . . . Weapon 1 | . . . 1 Energy Gun . | . . . . Energy Cannon . | . . . . Ballistic Gun . | . . . . Ballistic Cannon . | . . . . Launcher 1 | . . . 1 Special Weapon . | . . . . Impact Weapon . | . . . . Slashing Weapon . | . . . . Piercing Weapon . | . . . . Special Melee Weapon . | . . . . Unidentified Prototypes . | . . . . Parts Lost . | . . . . Power . | . . . . Propulsion . | . . . . Utility . | . . . . Weapon . | . . . . Highest Loss Streak . | . . . . To Critical Strikes . | . . . . Average Slot Usage (%) 12 | . . . 29 Engine 3 | . . . 7 Flight 5 | . . . 12 Launcher 3 | . . . 9 Naked Turns 94 | . 64 14 16 Heaviest Build 6 | . . . 6 Greatest Support 8 | 3 3 3 8 Greatest Overweight (x) 1 | . . . 1 Average Overweight (x) . | . . . . Largest Inventory Capacity 5 | 5 5 5 5 Average Capacity 5 | 5 5 5 5 Most Carried 4 | 4 1 1 1 Average Carried . | 2 . 1 . Final Capacity 5 | 5 5 5 5 Final Carried 1 | . 1 1 . Class Distribution -------------------- 100% | Mutant Dominant Class ---------------- Mutant | -10/Materials Mutant | -9/Materials Mutant | -9/Mines Resources | -11 -10 -9 -9 ----------- Run | Scr Mat Mat Min Matter Collected 215 | 200 . . 15 Remotely . | . . . . Salvage Created 28 | . . . 28 Parts 6 | . . . 6 Haulers Intercepted . | . . . . Recyclers Shooed . | . . . . Parts Field Recycled . | . . . . Retrieved Matter . | . . . . Parts Self-Destructed . | . . . . Prevented . | . . . . Kills | -11 -10 -9 -9 ------- Run | Scr Mat Mat Min Combat Hostiles Destroyed 4 | . . . 4 AOE 4 | . . . 4 Classes Destroyed 1 | . . . 1 Swarmer 4 | . . . 4 Best Kill Streak 4 | . . . 4 Combat Bots Only 4 | . . . 4 Max Kills in Single Turn 3 | . . . 3 Gunslinging . | . . . . Exploded 3 | . . . 3 Melee . | . . . . Uniques/NPCs Destroyed . | . . . . Combat | -11 -10 -9 -9 -------- Run | Scr Mat Mat Min Damage Taken 105 | . 80 . 25 Core 99 | . 80 . 19 Absorbed by Shields . | . . . . Core Remaining (%) 84 | 100 68 . . Volleys Fired 2 | . . . 2 Largest 1 | . . . 1 Hottest 30 | . . . 30 Shots Fired 2 | . . . 2 Gun . | . . . . Cannon . | . . . . Launcher 2 | . . . 2 Special . | . . . . Kinetic . | . . . . Thermal . | . . . . Explosive 2 | . . . 2 Electromagnetic . | . . . . Robot Hit Streak 2 | . . . 2 Robot Miss Streak . | . . . . Penetration Max . | . . . . Secondary Targets . | . . . . Shots Hit Robots 2 | . . . 2 Core Hits 5 | . 1 . 4 Critical Kills . | . . . . Critical Parts Destroyed . | . . . . Critical Strikes . | . . . . Melee Attacks . | . . . . Impact . | . . . . Slashing . | . . . . Piercing . | . . . . Sneak Attacks . | . . . . Combat Hostiles . | . . . . Follow-up Attacks . | . . . . Damage Inflicted 186 | . 6 . 180 Guns . | . . . . Cannons . | . . . . Explosions 180 | . . . 180 Melee . | . . . . Ramming 6 | . 6 . . Kinetic . | . . . . Thermal . | . . . . Explosive 180 | . . . 180 Electromagnetic . | . . . . Impact . | . . . . Slashing . | . . . . Piercing . | . . . . Highest Corruption . | . . . . Average Corruption . | . . . . Corruption Purged . | . . . . Corruption Blocked . | . . . . Overload Shots . | . . . . Overflow Damage 3 | . . . 3 Projectiles . | . . . . Explosions 3 | . . . 3 Melee . | . . . . Knockbacks . | . . . . Impact . | . . . . Kinetic . | . . . . Secondary . | . . . . Self-Inflicted Damage 2 | . 2 . . Shots . | . . . . Rammed 2 | . 2 . . Targets Rammed 2 | . 2 . . Kicked . | . . . . Crushed . | . . . . Highest Temperature . | . . . . Average Temperature . | . . . . Received Heat Transfer 42 | . 42 . . Siege Activations . | . . . . Robots Corrupted . | . . . . Combat Hostiles . | . . . . Parts Fried . | . . . . Impact Corruptions . | . . . . Robots Melted . | . . . . Combat Hostiles . | . . . . Parts Melted . | . . . . Heat Transferred . | . . . . Parts Sabotaged . | . . . . Parts Stolen . | . . . . Parts Stripped . | . . . . Power Chain Reactions . | . . . . Missiles Intercepted . | . . . . Alert | -11 -10 -9 -9 ------- Run | Scr Mat Mat Min Peak Influence 187 | . 45 18 187 Initial 18 | . . 18 6 Average 64 | . 26 18 118 Maximum Alert Level . | . . . . Low Security (%) 100 | 100 100 100 100 Level 1 . | . . . . Level 2 . | . . . . Level 3 . | . . . . Level 4 . | . . . . Level 5 . | . . . . High Security . | . . . . Max Security . | . . . . Squads Dispatched 1 | . 1 . . Investigation . | . . . . Extermination . | . . . . Reinforcement 1 | . 1 . . Assault . | . . . . Garrison . | . . . . Intercept . | . . . . Searches Triggered . | . . . . Construction Impeded . | . . . . Haulers Reinforced . | . . . . Active Scanning Responses . | . . . . Cargo Convoy Interrupts . | . . . . Stealth | -11 -10 -9 -9 --------- Run | Scr Mat Mat Min Distress Signals . | . . . . Communications Jammed . | . . . . Distress Signals . | . . . . Times Spotted 10 | . 6 . 4 Peak Tracking Total 5 | . 5 . 4 Tactical Retreats . | . . . . Traps | -11 -10 -9 -9 ------- Run | Scr Mat Mat Min Traps Triggered . | . . . . Indirectly . | . . . . Trap Hack Attempts . | . . . . Triggered . | . . . . Disarmed . | . . . . Reprogrammed . | . . . . Reused . | . . . . Traps Extracted . | . . . . Installed . | . . . . Triggered . | . . . . Machines | -11 -10 -9 -9 ---------- Run | Scr Mat Mat Min Machines Disabled . | . . . . Max in Single Turn . | . . . . Machines Sabotaged . | . . . . Garrisons Compromised . | . . . . Overloaded Fab Kills . | . . . . Hacking | -11 -10 -9 -9 --------- Run | Scr Mat Mat Min Machines Accessed 2 | . 1 1 . Terminals 2 | . 1 1 . Fabricators . | . . . . Repair Stations . | . . . . Recycling Units . | . . . . Scanalyzers . | . . . . Garrison Access . | . . . . Total Hacks 4 | . 2 2 . Successful 1 | . 1 . . Failed 3 | . 1 2 . Catastrophic . | . . . . Database Lockouts . | . . . . Manual 4 | . 2 2 . Terminals 4 | . 2 2 . Fabricators . | . . . . Repair Stations . | . . . . Recycling Units . | . . . . Scanalyzers . | . . . . Garrison Access . | . . . . Terminal Hacks . | . . . . Fabricator Hacks . | . . . . Repair Station Hacks . | . . . . Recycling Unit Hacks . | . . . . Scanalyzer . | . . . . Garrison Access Hacks . | . . . . Unauthorized Hacks 1 | . 1 . . Terminals 1 | . 1 . . Botnet 1 | . 1 . . Fabricators . | . . . . Repair Stations . | . . . . Recycling Units . | . . . . Scanalyzers . | . . . . Garrison Access . | . . . . Data Cores Recovered . | . . . . Used . | . . . . Hacking Detections 2 | . 1 1 . Full Trace Events . | . . . . Feedback Events . | . . . . Feedback Blocked . | . . . . Robot Schematics Acquired . | . . . . Robots Built . | . . . . Authchips . | . . . . Time . | . . . . Total Robot Build Rating . | . . . . Part Schematics Acquired . | . . . . Parts Built . | . . . . Authchips . | . . . . Time . | . . . . Total Part Build Rating . | . . . . Parts Repaired . | . . . . Time . | . . . . Parts Recycled . | . . . . Recycled Matter . | . . . . Retrieved Matter . | . . . . Retrieved Components . | . . . . Parts Scanalyzed . | . . . . Part Schematics Acquired . | . . . . Parts Damaged . | . . . . Bothacking | -11 -10 -9 -9 ------------ Run | Scr Mat Mat Min Used RIF Installer . | . . . . Robots Hacked . | . . . . Non-combat . | . . . . Combat . | . . . . Robot Hacks Applied . | . . . . Relay Couplers Released . | . . . . Fabnet Peak Effective % . | . . . . Robots Rewired . | . . . . Allies Hacked . | . . . . Hacks Repelled . | . . . . Allies | -11 -10 -9 -9 -------- Run | Scr Mat Mat Min Total Allies 2 | . . . 2 Largest Group 2 | . . . 2 Highest-Rated Group 53 | . . . 53 Highest-Rated Ally 31 | . . . 31 Total Orders . | . . . . Ally Attacks 6 | . . . 6 Total Damage 62 | . . . 62 Kills 1 | . . . 1 Allies Corrupted . | . . . . Allies Melted . | . . . . Intel | -11 -10 -9 -9 ------- Run | Scr Mat Mat Min Robot Analysis Total . | . . . . Derelict Logs Recovered 2 | . . . 2 Drone Launches . | . . . . Drone Recoveries . | . . . . Exploration | -11 -10 -9 -9 ------------- Run | Scr Mat Mat Min Turns Passed 142 | 3 64 14 61 Spaces Moved 273 | 1 122 28 122 Core 186 | 1 122 28 35 Treads . | . . . . Legs . | . . . . Wheels . | . . . . Hover . | . . . . Flight 87 | . . . 87 Fastest Speed 37 | 50 50 50 37 Average Speed 46 | 50 50 50 42 Slowest Speed 120 | 50 50 50 120 Overloaded Moves . | . . . . Propulsion Burnouts . | . . . . Robots Hopped . | . . . . Cave-ins Triggered . | . . . . Exploration Rate (%) 20 | 2 42 3 36 Regions Visited 3 Branch Regions 1 Pre-discovered Areas 2 | . . . 2 Known Exits Taken . | . . . . Unknown Exits Taken 3 | 1 1 1 . Scrap Searched 1 | . . . 1 Spaces Dug . | . . . . Terrain Destroyed 23 | . . . 23 Melee . | . . . . Projectile . | . . . . AOE 23 | . . . 23 Terrain Rammed . | . . . . Walls Destroyed . | . . . . Machines Disabled . | . . . . Actions | -11 -10 -9 -9 --------- Run | Scr Mat Mat Min Total 284 | 5 124 27 128 Wait . | . . . . Move 270 | . 121 27 122 Hop . | . . . . Pick Up 1 | . 1 . . Fast Attach 3 | . . . 3 Attach 1 | . . . 1 Detach . | . . . . Swap . | . . . . Drop 5 | 5 . . . Fire 2 | . . . 2 Melee . | . . . . Ram 2 | . 2 . . Kick . | . . . . Crush . | . . . . Escape Stasis . | . . . . Rewire . | . . . . Trap . | . . . . Miscellaneous . | . . . . Route ------- -11/Scrapyard -10/Materials (discovered 2 exits: *Mat / [*Min]) -9/Materials -9/Mines History --------- Turn | Location | Event 1 | -11/Scrapyard | Released all parts (6) 4 | -11/Scrapyard | Discovered new exit (range 0) 4 | -11/Scrapyard | Entered Materials 35 | -10/Materials | Discovered new exit (range 11) 62 | -10/Materials | Discovered new exit (range 15) 68 | -10/Materials | Entered another Materials area 68 | -9/Materials | Evolved 2 slots: Propulsion x2 68 | -9/Materials | Discovered new exit (range 7) 82 | -9/Materials | Entered Mines 83 | -9/Mines | Learned location of Storage (-9) 84 | -9/Mines | Learned Materials security intel 120 | -9/Mines | A weapon hastily lodged in a ceiling crevice suddenly fell to the ground 128 | -9/Mines | Assembled infested the area 143 | -9/Mines | Self-destructed Last Messages --------------- 00099_ S-10 Pest destroyed. 00099_ Destroyed Flight Unit. 00099_ S-10 Pest destroyed. 00105_ Acquired Flight Unit. 00106_ Acquired 6 matter. 00107_ Acquired Lgt. Ion Engine. 00109_ Acquired 9 matter. 00111_ Acquired Flight Unit. 00120_ A pair of derelicts emerge from the shadows: "We're, um, lost. You wouldn't happen to know the way out of here, would you?" 00120_ A Bore Cannon has been hastily shoved under some rubble with a note attached: "Boring, it is not. Although I admit enemies do get bored, for sure." 00128_ ALERT: Infestation in the mines, dispatching Demolisher response squad. 00142_ Searching scrap... 00142_ Found Particle Cannon. 00142_ Found Assault Rifle. 00142_ Found Sensor Array. 00142_ Found 18 Matter. Map ----- +----------------------------------------------------+ | | | | | | | | | | | | | ????????????????????????????????????????????? | | ????????????????????????????????????????????? | | ???????????????????###??????????????????????? | | ???????????????????# ##????????????????????? | | ??????????????####? ##???????????????????? | | ###??????????## ? #???????????????????? | | #?????????## ?? ##??????????????????? | | #?????????# ??? #??????????????????? | | #?????????# ??? #??????????????????? | | ##?????????# #???# #???????????????????? | | ###???????# ##?## #???????????????????? | | ##??????# ### #????????????????????? | | #??????# ##???????????????????? | | # [% #??????# ##??????????????????? | | # [ #????### ### ##?????????????????? | | ## #????# #?## ]! ##????????????????? | | #### #??### #??## % ##???????????????? | | ##?## # ###???###[ ##??????????????? | | ######??# ####????## #??????????????? | | ????????## ##????# @ #??????????????? | | ?????????### ##???## ##??????????????? | | ???????????## #????#####???????????????? | | ???????????## #????????????????????????? | | ???????##### ##????????????????????????? | | #?????## ####?????????????????????????? | | ##????# ##????????????????????????????? | | ##???# ##?????????????????????????????? | | #???# #??????????????????????????????? | | #???# #??????????????????????????????? | | #??## ##??????????????????????????????? | | ##?## ##???????????????????????????????? | | ##?## #????????????????????????????????? | | #?# ##???????????????????????????????? | | ### ########????????????????????????? | | ## #????????????????????????? | | #????????????????????????? | | ####### #????????????????????????? | | # ##?????? #????????????????????????? | | ## ##???????? #????????????????????????? | | ## ##??????????#????????????????????????? | | ## ###????????????????????????????????????? | | ## #??????????????????????????????????????? | | ## #??????????????????????????????????????? | | ## #??????????????????????????????????????? | +----------------------------------------------------+ Best States ------------- Heat Dissipation 28 Energy Generation 10 Energy Capacity 125 Matter Stores 300 Matter Capacity 300 Sight Range 16 Terrain Scan Density 10 Evasion (%) 62 Item Schematics ----------------- None Robot Schematics ------------------ None Fabricated ------------ Nothing Alien Tech Used ----------------- None Achievements -------------- None Challenges ------------ None Game ------ Seed DrainedWardroneCoupler Manual? 0 Play Time 00:03:28 Cumulative 253.0 hours Start 2022.05.13 @ 03:04:21 End 2022.05.13 @ 03:06:53 Sessions 1 Manual Loads 0 Difficulty Rogue Special Mode None Game No. 373 Rogue 370 Adventurer 0 Explorer 3 Win Type - Total 9 Types 9/0/0/0/0/0/0/0/0 Lore% 71 Gallery% 75 Achievement% 63 Wizard Run 0 Options --------- ASCII 1 Keyboard 1 Movement Vi Keybinds 0 Fullscreen 1 Font 18/SmallcapsGlow Map View 76x50 Tactical HUD 1 Map Filters NONE Filters NONE Steam 1 RUN: 888e892f-e7f2-4ca7-8bc4-1b5ae64c822a